[Event "IND-ch Senior Open 2019"]
[Site "Mazitar"]
[Date "2019.12.10"]
[Round "1.16"]
[White "Keshav Kothari"]
[Black "Ravi, Teja S."]
[Result "1/2-1/2"]
[ECO "D12"]
[WhiteElo "1895"]
[BlackElo "2455"]
[Annotator "ChessBase"]
[PlyCount "126"]
[EventDate "2018.12.08"]
[EventType "swiss"]
[EventRounds "11"]
[EventCountry "IND"]
[SourceTitle "playchess.com"]
[Source "ChessBase"]
[SourceQuality "1"]
[TimeControl "40/5400+30:1800+30"]

1. d4 d5 2. c4 c6 3. Nf3 Nf6 4. e3 Bg4 5. Nc3 e6 6. h3 Bh5 7. g4 Bg6 8. Ne5 Nbd7 9. Nxg6 hxg6 10. Bd3 Bb4 11. Bd2 a5 12. cxd5 exd5 13. Kf1 Qe7 14. Kg2 Ne4 15. f3 Nxd2 16. Qxd2 Nf8 17. Rae1 Ne6 18. a3 Bd6 19. Ne2 g5 20. f4 Kf8 21. f5 Nc7 22. Ng3 Bxg3 23. Kxg3 Ne8 24. e4 dxe4 25. Bxe4 Rd8 26. Kg2 Qf6 27. Qxa5 Qxd4 28. Bf3 Rh6 29. Re2 Rhd6 30. Qb4 Qxb4 31. axb4 Nc7 32. h4 gxh4 33. Rxh4 Rh6 34. Rxh6 gxh6 35. Kg3 Rd4 36. Re4 Rd3 37. Re2 Nb5 38. Kf2 Nd4 39. Be4 Rb3 40. Rd2 Rxb4 41. Ke3 c5 42. f6 Ne6 43. Bf5 Rb6 44. Rh2 Nd4 45. Rxh6 Nxf5+ 46. gxf5 Kg8 47. Ke4 Rxb2 48. Rh3 Rb6 49. Kd5 c4 50. Rg3+ Kf8 51. Rh3 Ke8 52. Rh8+ Kd7 53. Rf8 c3 54. Rxf7+ Ke8 55. Rc7 Rc6 56. Rxb7 c2 57. Rb8+ Kf7 58. Rb7+ Kg8 59. Rb8+ Kh7 60. f7 c1=Q 61. Rh8+ Kxh8 62. f8=Q+ Kh7 63. Qf7+ Kh8 1/2-1/2

[Event "IND-ch Senior Open 2019"]
[Site "Mazitar"]
[Date "2019.12.10"]
[Round "1.17"]
[White "Shyaamnikhil P"]
[Black "Arora Honi"]
[Result "1-0"]
[ECO "A07"]
[WhiteElo "2455"]
[BlackElo "1889"]
[Annotator "ChessBase"]
[PlyCount "79"]
[EventDate "2018.12.08"]
[EventType "swiss"]
[EventRounds "11"]
[EventCountry "IND"]
[SourceTitle "playchess.com"]
[Source "ChessBase"]
[SourceQuality "1"]
[TimeControl "40/5400+30:1800+30"]

1. Nf3 {[%emt 0:00:00]} d5 {[%emt 0:00:02]} 2. g3 {[%emt 0:00:02]} Nf6 {[%emt 0:00:03]} 3. Bg2 {[%emt 0:00:01]} c6 {[%emt 0:00:04]} 4. O-O {[%emt 0:00:01]} Bg4 {[%emt 0:00:05]} 5. d3 {[%emt 0:00:01]} Nbd7 {[%emt 0:00:11]} 6. h3 {[%emt 0:00:01]} Bh5 {[%emt 0:00:07]} 7. Nbd2 {[%emt 0:00:01]} e5 {[%emt 0:00:04]} 8. e4 {[%emt 0:00:01]} Bd6 {[%emt 0:00:04]} 9. b3 {[%emt 0:00:01]} O-O {[%emt 0:00:04]} 10. Bb2 {[%emt 0:00:01]} Re8 {[%emt 0:00:04]} 11. Qc1 {[%emt 0:00:03]} Qc7 {[%emt 0:00:05]} 12. Re1 {[%emt 0:00:01]} Bg6 {[%emt 0:00:04]} 13. Nh4 {[%emt 0:00:01]} dxe4 {[%emt 0:00:04]} 14. dxe4 {[%emt 0:00:01]} b5 {[%emt 0:00:04]} 15. a4 {[%emt 0:00:03]} Bc5 {[%emt 0:00:16]} 16. Re2 {[%emt 0:00:03]} a6 {[%emt 0:00:04]} 17. Qe1 {[%emt 0:00:01]} Nf8 {[%emt 0:00:05]} 18. Ndf3 {[%emt 0:00:03]} N6d7 {[%emt 0:00:02]} 19. Rd2 {[%emt 0:00:01]} Rad8 {[%emt 0:00:05]} 20. Nxg6 {[%emt 0:00:06]} Nxg6 {[%emt 0:00:01]} 21. Bf1 {[%emt 0:00:13]} Nf6 {[%emt 0:00:02]} 22. Rxd8 {[%emt 0:00:06]} Rxd8 {[%emt 0:00:01]} 23. b4 {[%emt 0:00:04]} Bd6 {[%emt 0:00:01]} 24. c4 {[%emt 0:00:04]} Qb7 {[%emt 0:00:03]} 25. c5 {[%emt 0:00:03]} Bc7 {[%emt 0:00:04]} 26. axb5 {[%emt 0:00:02]} axb5 {[%emt 0:00:01]} 27. Ra3 {[%emt 0:00:01]} Ra8 {[%emt 0:00:04]} 28. Rb3 {[%emt 0:00:04]} h6 {[%emt 0:00:11]} 29. Bd3 {[%emt 0:00:01]} Qc8 {[%emt 0:00:06]} 30. Kg2 {[%emt 0:00:01]} Qe6 {[%emt 0:00:03]} 31. Nd2 {[%emt 0:00:01]} h5 {[%emt 0:00:05]} 32. Bc2 {[%emt 0:00:01]} h4 {[%emt 0:00:08]} 33. Rf3 {[%emt 0:00:02]} Nh5 {[%emt 0:00:05]} 34. Bb3 {[%emt 0:00:02]} Qc8 {[%emt 0:00:14]} 35. Rxf7 {[%emt 0:00:05]} Kh7 {[%emt 0:00:01]} 36. Rf5 {[%emt 0:00:01]} Nf6 {[%emt 0:00:31]} 37. Qe2 {[%emt 0:00:03]} Kh6 {[%emt 0:00:58]} 38. Qe3+ {[%emt 0:00:10]} Kh7 {[%emt 0:00:01]} 39. Qg5 {[%emt 0:00:03]} Ne7 {[%emt 0:00:05]} 40. Qxh4+ {[%emt 0:00:07]} 1-0

[Event "IND-ch Senior Open 2019"]
[Site "Mazitar"]
[Date "2019.12.10"]
[Round "1.18"]
[White "Harisurya Bharadwaj Gundepudi"]
[Black "Bakre, Tejas"]
[Result "1/2-1/2"]
[ECO "A45"]
[WhiteElo "1876"]
[BlackElo "2445"]
[Annotator "NA"]
[PlyCount "62"]
[EventDate "2018.12.08"]
[EventType "swiss"]
[EventRounds "11"]
[EventCountry "IND"]
[SourceTitle "playchess.com"]
[Source "ChessBase"]
[SourceQuality "1"]
[TimeControl "40/5400+30:1800+30"]

1. d4 {[%emt 0:00:00]} Nf6 {[%emt 0:00:01]} 2. Bf4 {[%emt 0:00:02]} d5 {[%emt 0:00:00]} 3. e3 {[%emt 0:00:01]} c5 {[%emt 0:00:00]} 4. c3 {[%emt 0:00:01]} e6 {[%emt 0:00:00]} 5. Nd2 {[%emt 0:00:03]} Bd6 {[%emt 0:00:02]} 6. Bg3 {[%emt 0:00:04]} Qc7 {[%emt 0:00:01]} 7. Ngf3 {[%emt 0:00:06]} Nbd7 {[%emt 0:00:01]} 8. Bd3 {[%emt 0:00:02]} O-O {[%emt 0:00:02]} 9. O-O {[%emt 0:00:00]} e5 {[%emt 0:00:02]} 10. dxe5 {[%emt 0:00:01]} Nxe5 {[%emt 0:00:01]} 11. Nxe5 {[%emt 0:00:02]} Bxe5 {[%emt 0:00:00]} 12. Bxe5 {[%emt 0:00:01]} Qxe5 {[%emt 0:00:03]} 13. Qf3 {[%emt 0:00:01]} Re8 {[%emt 0:00:01]} 14. Rfe1 {[%emt 0:00:02]} Ne4 {[%emt 0:00:03]} 15. Bxe4 {[%emt 0:00:03]} dxe4 {[%emt 0:00:00]} 16. Qf4 {[%emt 0:00:03]} b6 {[%emt 0:00:01]} 17. Nc4 {[%emt 0:00:02]} Qxf4 {[%emt 0:00:00]} 18. exf4 {[%emt 0:00:00]} Ba6 {[%emt 0:00:02]} 19. Ne3 {[%emt 0:00:03]} Rad8 {[%emt 0:00:01]} 20. Rad1 {[%emt 0:00:03]} Bd3 {[%emt 0:00:01]} 21. Rd2 {[%emt 0:00:02]} Rd7 {[%emt 0:00:02]} 22. Red1 {[%emt 0:00:02]} Red8 {[%emt 0:00:01]} 23. h3 {[%emt 0:00:02]} f6 {[%emt 0:00:00]} 24. Kh2 {[%emt 0:00:02]} Kf7 {[%emt 0:00:00]} 25. g4 {[%emt 0:00:02]} Ke6 {[%emt 0:00:00]} 26. Kg3 {[%emt 0:00:01]} g6 {[%emt 0:00:00]} 27. f5+ {[%emt 0:00:01]} Ke7 {[%emt 0:00:01]} 28. h4 {[%emt 0:00:02]} Kf7 {[%emt 0:00:00]} 29. Kf4 {[%emt 0:00:02]} Re7 {[%emt 0:00:01]} 30. Rh1 {[%emt 0:00:04]} Kg7 {[%emt 0:00:01]} 31. Rg1 {[%emt 0:00:02]} Kf8 {[%emt 0:00:01]} 1/2-1/2

[Event "IND-ch Senior Open 2019"]
[Site "Mazitar"]
[Date "2019.12.10"]
[Round "1.19"]
[White "Laxman, R.R."]
[Black "Ajay Kumar Rai"]
[Result "1-0"]
[ECO "D02"]
[WhiteElo "2444"]
[BlackElo "1871"]
[Annotator "NA"]
[PlyCount "79"]
[EventDate "2018.12.08"]
[EventType "swiss"]
[EventRounds "11"]
[EventCountry "IND"]
[SourceTitle "playchess.com"]
[Source "ChessBase"]
[SourceQuality "1"]
[TimeControl "40/5400+30:1800+30"]

1. d4 d5 2. Nf3 Nf6 3. c4 e6 4. g3 Bb4+ 5. Bd2 Be7 6. Bg2 O-O 7. O-O Nbd7 8. Qc2 Ne4 9. Bf4 c6 10. Ne5 f5 11. Nc3 g5 12. Nxd7 Bxd7 13. Be5 Be8 14. Nxe4 fxe4 15. f3 exf3 16. exf3 Bf6 17. Rae1 Bg6 18. Qc3 Bxe5 19. Rxe5 Rf5 20. Rxe6 Bf7 21. Re5 Rxe5 22. dxe5 dxc4 23. f4 gxf4 24. gxf4 Qd3 25. f5 Qxc3 26. bxc3 Bd5 27. Bxd5+ cxd5 28. e6 Re8 29. Rd1 Kg7 30. Rxd5 Kf6 31. Kf2 a6 32. a4 b6 33. Ke3 Rb8 34. Kf4 Rb7 35. Rd8 b5 36. axb5 axb5 37. h4 h5 38. Rg8 Rg7 39. Rxg7 Kxg7 40. Ke4 1-0

[Event "IND-ch Senior Open 2019"]
[Site "Mazitar"]
[Date "2019.12.10"]
[Round "1.21"]
[White "Akash G"]
[Black "Mohit Kumar Soni"]
[Result "1-0"]
[ECO "B41"]
[WhiteElo "2431"]
[BlackElo "1859"]
[Annotator "NA"]
[PlyCount "37"]
[EventDate "2018.12.08"]
[EventType "swiss"]
[EventRounds "11"]
[EventCountry "IND"]
[SourceTitle "playchess.com"]
[Source "ChessBase"]
[SourceQuality "1"]
[TimeControl "40/5400+30:1800+30"]

1. e4 {[%emt 0:00:00]} c5 {[%emt 0:00:01]} 2. Nf3 {[%emt 0:00:05]} e6 {[%emt 0:00:01]} 3. d4 {[%emt 0:00:05]} cxd4 {[%emt 0:00:00]} 4. Nxd4 {[%emt 0:00:01]} Bc5 {[%emt 0:00:01]} 5. Nb3 {[%emt 0:00:03]} Bb6 {[%emt 0:00:01]} 6. Nc3 {[%emt 0:00:04]} Ne7 {[%emt 0:00:03]} 7. Bc4 {[%emt 0:00:04]} O-O {[%emt 0:00:02]} 8. O-O {[%emt 0:00:04]} f5 {[%emt 0:00:01]} 9. Bf4 {[%emt 0:00:04]} fxe4 {[%emt 0:00:01]} 10. Bd6 {[%emt 0:00:17]} e3 {[%emt 0:00:00]} 11. fxe3 {[%emt 0:00:04]} Rxf1+ {[%emt 0:00:01]} 12. Qxf1 {[%emt 0:00:01]} Bxe3+ {[%emt 0:00:05]} 13. Kh1 {[%emt 0:00:01]} Nbc6 {[%emt 0:00:04]} 14. Qf3 {[%emt 0:00:01]} Bh6 {[%emt 0:00:04]} 15. Rf1 {[%emt 0:00:01]} b5 {[%emt 0:00:03]} 16. Nxb5 {[%emt 0:00:01]} Ba6 {[%emt 0:00:04]} 17. a4 {[%emt 0:00:02]} Kh8 {[%emt 0:00:01]} 18. Nc5 {[%emt 0:00:04]} Bc8 {[%emt 0:00:01]} 19. Bxe7 {[%emt 0:00:04]} 1-0

[Event "IND-ch Senior Open 2019"]
[Site "Mazitar"]
[Date "2019.12.11"]
[Round "2.5"]
[White "Ghosh, Diptayan"]
[Black "Praveen Kumar C"]
[Result "1-0"]
[ECO "D34"]
[WhiteElo "2555"]
[BlackElo "2199"]
[Annotator "RC"]
[PlyCount "67"]
[EventDate "2018.12.08"]
[EventType "swiss"]
[EventCountry "IND"]
[SourceTitle "playchess.com"]
[Source "ChessBase"]
[SourceQuality "1"]
[TimeControl "40/5400+30:1800+30"]

1. c4 {[%emt 0:00:00]} e6 {[%emt 0:00:40]} 2. g3 {[%emt 0:00:00]} Nf6 {[%emt 0:00:52]} 3. Bg2 {[%emt 0:00:05]} d5 {[%emt 0:00:07]} 4. Nf3 {[%emt 0:00:47]} Be7 {[%emt 0:00:18]} 5. d4 {[%emt 0:01:11]} O-O {[%emt 0:00:13]} 6. O-O {[%emt 0:04:57]} c5 {[%emt 0:00:14]} 7. cxd5 {[%emt 0:00:42]} exd5 {[%emt 0:00:08]} 8. Nc3 {[%emt 0:01:58]} Nc6 {[%emt 0:00:11]} 9. dxc5 {[%emt 0:01:35]} Bxc5 {[%emt 0:00:07]} 10. Na4 {[%emt 0:01:14]} Bb6 {[%emt 0:01:39]} 11. b3 {[%emt 0:02:22]} Re8 {[%emt 0:03:16]} 12. Nxb6 {[%emt 0:09:22]} axb6 {[%emt 0:00:13]} 13. Bb2 {[%emt 0:00:19]} Bg4 {[%emt 0:03:17]} 14. Qd3 {[%emt 0:06:08]} Qe7 {[%emt 0:12:48]} 15. Rfe1 {[%emt 0:01:21]} h6 {[%emt 0:23:51]} 16. Nd4 {[%emt 0:13:57]} Ne5 {[%emt 0:06:10]} 17. Qd2 {[%emt 0:04:14]} Bd7 {[%emt 0:04:20]} 18. Nc2 {[%emt 0:12:46]} Bc6 {[%emt 0:05:52]} 19. Bd4 {[%emt 0:05:26]} Ne4 {[%emt 0:02:34]} 20. Qb4 {[%emt 0:00:58]} Nd7 {[%emt 0:05:02]} 21. Qxe7 {[%emt 0:00:32]} Rxe7 {[%emt 0:00:02]} 22. Nb4 {[%emt 0:01:48]} Nef6 {[%emt 0:02:47]} 23. e3 {[%emt 0:01:35]} Re6 {[%emt 0:02:09]} 24. Rec1 {[%emt 0:00:25]} Rd6 {[%emt 0:00:37]} 25. Rc2 {[%emt 0:02:07]} Ne4 {[%emt 0:03:31]} 26. Rac1 {[%emt 0:02:12]} Nec5 {[%emt 0:03:28]} 27. Bh3 {[%emt 0:10:11]} Bb5 {[%emt 0:02:02]} 28. a4 {[%emt 0:03:34]} Ba6 {[%emt 0:01:01]} 29. Bxd7 {[%emt 0:00:35]} Nxd7 {[%emt 0:00:12]} 30. Rc8+ {[%emt 0:00:05]} Rxc8 {[%emt 0:00:13]} 31. Rxc8+ {[%emt 0:00:06]} Kh7 {[%emt 0:00:06]} 32. Nxa6 {[%emt 0:03:05]} bxa6 {[%emt 0:00:03]} 33. b4 {[%emt 0:00:29]} f6 {[%emt 0:01:14]} 34. Rd8 {[%emt 0:01:40]} 1-0

[Event "IND-ch Senior Open 2019"]
[Site "Mazitar"]
[Date "2019.12.11"]
[Round "2.6"]
[White "Utsab Chatterjee"]
[Black "Chanda, Sandipan"]
[Result "0-1"]
[ECO "B85"]
[WhiteElo "2200"]
[BlackElo "2545"]
[Annotator "ChessBase"]
[PlyCount "72"]
[EventDate "2018.12.08"]
[EventType "swiss"]
[EventRounds "11"]
[EventCountry "IND"]
[SourceTitle "playchess.com"]
[Source "ChessBase"]
[SourceQuality "1"]
[TimeControl "40/5400+30:1800+30"]

1. e4 {[%emt 0:00:00]} c5 {[%emt 0:00:01]} 2. Nf3 {[%emt 0:00:01]} d6 {[%emt 0:00:00]} 3. d4 {[%emt 0:00:17]} cxd4 {[%emt 0:00:02]} 4. Nxd4 {[%emt 0:00:00]} Nf6 {[%emt 0:00:01]} 5. Nc3 {[%emt 0:00:00]} a6 {[%emt 0:00:03]} 6. Be2 {[%emt 0:00:01]} e6 {[%emt 0:00:03]} 7. O-O {[%emt 0:00:01]} Be7 {[%emt 0:00:03]} 8. Kh1 {[%emt 0:00:01]} O-O {[%emt 0:00:03]} 9. f4 {[%emt 0:00:01]} Qc7 {[%emt 0:00:04]} 10. Be3 {[%emt 0:00:05]} b5 {[%emt 0:00:01]} 11. Bf3 {[%emt 0:00:02]} Bb7 {[%emt 0:00:01]} 12. e5 {[%emt 0:00:02]} Ne8 {[%emt 0:00:00]} 13. a3 {[%emt 0:00:02]} Nd7 {[%emt 0:00:09]} 14. Bxb7 {[%emt 0:00:36]} Qxb7 {[%emt 0:00:00]} 15. Qh5 {[%emt 0:00:03]} g6 {[%emt 0:00:03]} 16. Qh3 {[%emt 0:00:02]} Ng7 {[%emt 0:00:01]} 17. exd6 {[%emt 0:00:01]} Bxd6 {[%emt 0:00:01]} 18. Rad1 {[%emt 0:00:03]} Bc5 {[%emt 0:10:07]} 19. Rfe1 {[%emt 0:00:01]} Rad8 {[%emt 0:09:22]} 20. b4 {[%emt 0:00:01]} Ba7 {[%emt 0:09:00]} 21. Nb3 {[%emt 0:07:57]} Bxe3 {[%emt 0:01:57]} 22. Rxe3 {[%emt 0:00:00]} Nf6 {[%emt 0:11:09]} 23. Red3 {[%emt 0:00:01]} Qc7 {[%emt 0:09:43]} 24. Rxd8 {[%emt 0:03:29]} Rxd8 {[%emt 0:00:01]} 25. Rxd8+ {[%emt 0:00:01]} Qxd8 {[%emt 0:00:00]} 26. Qd3 {[%emt 0:00:01]} Qc7 {[%emt 0:01:52]} 27. g3 {[%emt 0:00:00]} Nf5 {[%emt 0:26:59]} 28. Nc5 {[%emt 0:00:01]} e5 {[%emt 0:00:01]} 29. Ne2 {[%emt 0:03:11]} exf4 {[%emt 0:03:57]} 30. Nxf4 {[%emt 0:00:01]} Qe5 {[%emt 0:05:59]} 31. Kg2 {[%emt 0:00:01]} Kg7 {[%emt 0:06:09]} 32. Kf3 {[%emt 0:00:02]} Qe1 {[%emt 0:06:38]} 33. Kg2 {[%emt 0:03:49]} Ne3+ {[%emt 0:00:07]} 34. Kh3 {[%emt 0:00:00]} g5 {[%emt 0:00:01]} 35. Qe2 {[%emt 0:00:01]} Qxe2 {[%emt 0:02:19]} 36. Nxe2 {[%emt 0:00:00]} g4+ {[%emt 0:00:00]} 0-1

[Event "IND-ch Senior Open 2019"]
[Site "Mazitar"]
[Date "2019.12.11"]
[Round "2.7"]
[White "Deepan Chakkravarthy J."]
[Black "Maheswaran, P.."]
[Result "1-0"]
[ECO "D00"]
[WhiteElo "2535"]
[BlackElo "2191"]
[Annotator "ChessBase"]
[PlyCount "103"]
[EventDate "2018.12.08"]
[EventType "swiss"]
[EventRounds "11"]
[EventCountry "IND"]
[SourceTitle "playchess.com"]
[Source "ChessBase"]
[SourceQuality "1"]
[TimeControl "40/5400+30:1800+30"]

1. d4 {[%emt 0:00:00]} d5 {[%emt 0:00:02]} 2. Bf4 {[%emt 0:00:10]} Nf6 {[%emt 0:00:11]} 3. e3 {[%emt 0:00:03]} e6 {[%emt 0:00:03]} 4. Nd2 {[%emt 0:00:01]} c5 {[%emt 0:00:00]} 5. c3 {[%emt 0:00:01]} Nc6 {[%emt 0:00:00]} 6. Ngf3 {[%emt 0:00:01]} Bd6 {[%emt 0:00:02]} 7. Bg3 {[%emt 0:00:00]} O-O {[%emt 0:00:00]} 8. Bd3 {[%emt 0:00:01]} b6 {[%emt 0:00:01]} 9. Ne5 {[%emt 0:00:45]} Bb7 {[%emt 0:03:42]} 10. f4 {[%emt 0:00:13]} Ne7 {[%emt 0:01:51]} 11. Qf3 {[%emt 0:13:39]} Nf5 {[%emt 0:05:28]} 12. O-O {[%emt 0:12:21]} Be7 {[%emt 0:05:28]} 13. Rad1 {[%emt 0:00:15]} Nd6 {[%emt 0:03:58]} 14. Qe2 {[%emt 0:04:56]} c4 {[%emt 0:18:21]} 15. Bb1 {[%emt 0:00:54]} b5 {[%emt 0:00:44]} 16. f5 {[%emt 0:03:37]} exf5 {[%emt 0:00:01]} 17. Bxf5 {[%emt 0:00:01]} Nxf5 {[%emt 0:07:42]} 18. Rxf5 {[%emt 0:00:01]} g6 {[%emt 0:01:57]} 19. Rf3 {[%emt 0:13:36]} Nh5 {[%emt 0:00:01]} 20. Rdf1 {[%emt 0:00:23]} f6 {[%emt 0:02:01]} 21. Bh4 {[%emt 0:02:07]} Qd6 {[%emt 0:06:32]} 22. Ng4 {[%emt 0:00:08]} Bc8 {[%emt 0:01:29]} 23. h3 {[%emt 0:01:08]} f5 {[%emt 0:06:45]} 24. Bxe7 {[%emt 0:01:14]} Qxe7 {[%emt 0:00:01]} 25. Ne5 {[%emt 0:15:55]} Be6 {[%emt 0:00:01]} 26. g4 {[%emt 0:08:41]} Ng7 {[%emt 0:06:58]} 27. Kh2 {[%emt 0:08:13]} b4 {[%emt 0:00:01]} 28. gxf5 {[%emt 0:01:04]} Nxf5 {[%emt 0:00:58]} 29. e4 {[%emt 0:00:53]} dxe4 {[%emt 0:00:59]} 30. Nxe4 {[%emt 0:01:29]} bxc3 {[%emt 0:00:30]} 31. bxc3 {[%emt 0:00:08]} Bd5 {[%emt 0:01:33]} 32. Rf4 {[%emt 0:01:53]} Rab8 {[%emt 0:00:01]} 33. Ng3 {[%emt 0:10:02]} Qa3 {[%emt 0:00:02]} 34. Nxf5 {[%emt 0:00:01]} Rxf5 {[%emt 0:00:01]} 35. Rxf5 {[%emt 0:01:25]} Rb2 {[%emt 0:00:01]} 36. R5f2 {[%emt 0:01:10]} Rxe2 {[%emt 0:00:18]} 37. Rxe2 {[%emt 0:00:01]} Qxc3 {[%emt 0:00:50]} 38. Ng4 {[%emt 0:00:00]} Qxd4 {[%emt 0:00:20]} 39. Re8+ {[%emt 0:00:00]} Kg7 {[%emt 0:00:01]} 40. Re7+ {[%emt 0:00:00]} Kh8 41. Rf8+ {[%emt 0:31:32]} Bg8 {[%emt 0:30:30]} 42. Ree8 Qd6+ {[%emt 0:05:13]} 43. Kg2 {[%emt 0:01:04]} Qd2+ {[%emt 0:06:39]} 44. Kg3 {[%emt 0:01:46]} h5 {[%emt 0:01:40]} 45. Rxg8+ {[%emt 0:00:27]} Kh7 {[%emt 0:00:00]} 46. Rh8+ {[%emt 0:00:00]} Kg7 {[%emt 0:00:00]} 47. Reg8+ {[%emt 0:00:00]} Kf7 {[%emt 0:00:00]} 48. Rf8+ {[%emt 0:00:00]} Kg7 49. Rhg8+ {[%emt 0:00:00]} Kh7 {[%emt 0:01:14]} 50. Nf6+ {[%emt 0:00:00]} Kh6 {[%emt 0:00:01]} 51. Rh8+ {[%emt 0:00:00]} Kg7 {[%emt 0:00:38]} 52. Ne8# {[%emt 0:00:00]} 1-0

[Event "IND-ch Senior Open 2019"]
[Site "Mazitar"]
[Date "2019.12.11"]
[Round "2.8"]
[White "Soham Kamotra"]
[Black "Visakh N R"]
[Result "0-1"]
[ECO "A20"]
[WhiteElo "2199"]
[BlackElo "2516"]
[Annotator "ChessBase"]
[PlyCount "88"]
[EventDate "2018.12.08"]
[EventType "swiss"]
[EventRounds "11"]
[EventCountry "IND"]
[SourceTitle "playchess.com"]
[Source "ChessBase"]
[SourceQuality "1"]
[TimeControl "40/5400+30:1800+30"]

1. c4 {[%emt 0:00:00]} e5 {[%emt 0:00:01]} 2. g3 {[%emt 0:00:16]} Nf6 {[%emt 0:00:06]} 3. Bg2 {[%emt 0:00:04]} d5 {[%emt 0:00:01]} 4. cxd5 {[%emt 0:00:02]} Nxd5 {[%emt 0:00:00]} 5. Nc3 {[%emt 0:00:02]} Nxc3 {[%emt 0:00:00]} 6. bxc3 {[%emt 0:00:02]} Nc6 {[%emt 0:00:01]} 7. d3 {[%emt 0:00:03]} Bc5 {[%emt 0:00:01]} 8. Qc2 {[%emt 0:00:02]} O-O {[%emt 0:00:01]} 9. Nf3 {[%emt 0:00:02]} Re8 {[%emt 0:00:00]} 10. O-O {[%emt 0:00:02]} Qf6 {[%emt 0:00:01]} 11. Ng5 {[%emt 0:00:03]} Qg6 {[%emt 0:00:02]} 12. Bd5 {[%emt 0:00:03]} Rf8 {[%emt 0:00:01]} 13. Ne4 {[%emt 0:00:16]} Bb6 {[%emt 0:00:01]} 14. a4 {[%emt 0:00:03]} Bh3 {[%emt 0:00:03]} 15. Rd1 {[%emt 0:00:04]} Rad8 {[%emt 0:00:03]} 16. Qa2 {[%emt 0:00:01]} a6 {[%emt 0:00:03]} 17. Ng5 {[%emt 0:00:02]} Bg4 {[%emt 0:00:15]} 18. h3 {[%emt 0:00:04]} Bxe2 {[%emt 0:00:01]} 19. Be4 {[%emt 0:00:13]} Qh5 {[%emt 0:00:04]} 20. g4 {[%emt 0:00:00]} Bxg4 {[%emt 0:00:04]} 21. hxg4 {[%emt 0:00:01]} Qxg4+ {[%emt 0:00:00]} 22. Kh2 {[%emt 0:00:04]} Qxd1 {[%emt 0:00:01]} 23. Nf3 {[%emt 0:00:03]} Rxd3 {[%emt 0:00:03]} 24. Be3 {[%emt 0:00:15]} Bxe3 {[%emt 0:00:01]} 25. Rxd1 {[%emt 0:00:05]} Bf4+ {[%emt 0:00:03]} 26. Kg2 {[%emt 0:00:03]} Rxd1 {[%emt 0:00:01]} 27. Qb3 {[%emt 0:00:05]} Rd6 {[%emt 0:00:04]} 28. Qxb7 {[%emt 0:00:03]} Ne7 {[%emt 0:00:02]} 29. Qxc7 {[%emt 0:00:04]} Re6 {[%emt 0:00:01]} 30. Qd7 {[%emt 0:00:02]} g6 {[%emt 0:00:02]} 31. c4 {[%emt 0:00:03]} Kg7 {[%emt 0:00:02]} 32. Qb7 {[%emt 0:00:03]} Rd8 {[%emt 0:00:03]} 33. Ne1 {[%emt 0:00:08]} Rd4 {[%emt 0:00:03]} 34. c5 {[%emt 0:00:02]} Rxa4 {[%emt 0:02:08]} 35. Bc2 {[%emt 0:00:07]} Ra5 {[%emt 0:00:01]} 36. Nd3 {[%emt 0:00:04]} Bg5 {[%emt 0:00:03]} 37. Qc7 {[%emt 0:00:02]} Ra3 {[%emt 0:00:06]} 38. Qb7 {[%emt 0:00:05]} Rc3 {[%emt 0:00:02]} 39. Bb3 {[%emt 0:00:03]} Rxd3 {[%emt 0:00:00]} 40. Bxe6 {[%emt 0:00:04]} fxe6 {[%emt 0:00:01]} 41. Qc6 {[%emt 0:30:04]} Rc3 {[%emt 0:30:01]} 42. Qd6 {[%emt 0:00:06]} Bf6 {[%emt 0:00:01]} 43. Kf1 {[%emt 0:00:14]} Kf7 {[%emt 0:00:01]} 44. Ke2 {[%emt 0:00:03]} e4 {[%emt 0:00:01]} 0-1

[Event "IND-ch Senior Open 2019"]
[Site "Mazitar"]
[Date "2019.12.11"]
[Round "2.9"]
[White "Vishnu Prasanna. V"]
[Black "Niraj, Saripalli"]
[Result "1-0"]
[ECO "C50"]
[WhiteElo "2493"]
[BlackElo "2180"]
[Annotator "ChessBase"]
[PlyCount "47"]
[EventDate "2018.12.08"]
[EventType "swiss"]
[EventRounds "11"]
[EventCountry "IND"]
[SourceTitle "playchess.com"]
[Source "ChessBase"]
[SourceQuality "1"]
[TimeControl "40/5400+30:1800+30"]

1. e4 {[%emt 0:00:00]} e5 {[%emt 0:00:01]} 2. Bc4 {[%emt 0:00:01]} Nc6 {[%emt 0:00:04]} 3. Nf3 {[%emt 0:00:04]} g6 {[%emt 0:00:00]} 4. d3 {[%emt 0:00:04]} Bg7 {[%emt 0:00:24]} 5. a3 {[%emt 0:00:04]} Nge7 {[%emt 0:00:01]} 6. Nc3 {[%emt 0:00:04]} d6 {[%emt 0:00:00]} 7. Ng5 {[%emt 0:00:03]} O-O {[%emt 0:00:01]} 8. h4 {[%emt 0:00:03]} h6 {[%emt 0:10:19]} 9. h5 {[%emt 0:00:01]} Nd4 {[%emt 0:22:37]} 10. hxg6 {[%emt 0:01:30]} Nxg6 {[%emt 0:02:01]} 11. Qh5 {[%emt 0:00:01]} Nh8 {[%emt 0:09:22]} 12. Nf3 {[%emt 0:00:01]} c6 {[%emt 0:14:58]} 13. Bxh6 {[%emt 0:00:01]} Qf6 {[%emt 0:01:41]} 14. Nxd4 {[%emt 0:00:01]} exd4 {[%emt 0:07:23]} 15. Ne2 {[%emt 0:00:01]} d5 {[%emt 0:00:01]} 16. Bb3 {[%emt 0:00:00]} Re8 {[%emt 0:00:01]} 17. f3 {[%emt 0:00:38]} Re5 {[%emt 0:00:02]} 18. Qh2 {[%emt 0:00:51]} dxe4 {[%emt 0:02:28]} 19. dxe4 {[%emt 0:00:33]} d3 {[%emt 0:04:57]} 20. Bxg7 {[%emt 0:00:01]} Qxg7 {[%emt 0:00:28]} 21. cxd3 {[%emt 0:00:24]} Rb5 {[%emt 0:01:40]} 22. Qd6 {[%emt 0:00:01]} Ng6 {[%emt 0:02:59]} 23. Nf4 {[%emt 0:02:19]} Rxb3 {[%emt 0:01:55]} 24. Nh5 {[%emt 0:00:01]} 1-0